{"text_format":"3","workbook":"xlsx","n_sheets":4,"sheets":["Σύνοψη","Σύνολα","Έσοδα","Δαπάνες"],"not_rendered":{"defined_names":13},"read":"whole","date_system":"1900"}

{"sheet":"Σύνοψη","index":0,"n_rows":6,"n_cols":3,"rows_kept":6,"merged":[[0,1,0,2],[1,1,1,2]]}
[null,"ΟΙΚΟΓΕΝΕΙΑΚΟΣ ΜΗΝΙΑΙΟΣ ΠΡΟΫΠΟΛΟΓΙΣΜΟΣ"]
[null,"ΣΥΝΟΨΗ"]
[null,"Υπόλοιπο","Ποσό"]
[null,"Προβλεπόμενο υπόλοιπο (προβλεπόμενα έσοδα μείον έξοδα)",{"$f":"ΠροβλεπόμεναΈσοδα-ΠροβλεπόμεναΈξοδα","v":{"v":1114,"d":"1,114 €"}}]
[null,"Πραγματικό υπόλοιπο (πραγματικά έσοδα μείον έξοδα)",{"$f":"ΠραγματικάΈσοδα-ΠραγματικάΈξοδα","v":{"v":997,"d":"997 €"}}]
[null,"Διαφορά (πραγματικά μείον προβλεπόμενα ποσά)",{"$f":"ΠραγματικόYπόλοιπο-ΠροβλεπόμενοΥπόλοιπο","v":{"v":-117,"d":"-117 €"}}]

{"sheet":"Σύνολα","index":1,"n_rows":6,"n_cols":3,"rows_kept":6,"merged":[[0,1,0,2],[1,1,1,2]]}
[null,{"$f":"Workbook_Title","v":"ΟΙΚΟΓΕΝΕΙΑΚΟΣ ΜΗΝΙΑΙΟΣ ΠΡΟΫΠΟΛΟΓΙΣΜΟΣ"}]
[null,"Σύνολα"]
[null,"Σύνολα","Ποσό"]
[null,"Συνολικά προβλεπόμενα έξοδα",{"$f":"ΠροβλεπόμεναΈξοδα","v":{"v":4486,"d":"4,486 €"}}]
[null,"Συνολικά πραγματικά έξοδα",{"$f":"ΠραγματικάΈξοδα","v":{"v":4603,"d":"4,603 €"}}]
[null,"Συνολική διαφορά",{"$f":"C4-C5","v":{"v":-117,"d":"-117 €"}}]

{"sheet":"Έσοδα","index":2,"n_rows":7,"n_cols":5,"rows_kept":7,"merged":[[0,1,0,4],[1,1,1,4]]}
[null,{"$f":"Workbook_Title","v":"ΟΙΚΟΓΕΝΕΙΑΚΟΣ ΜΗΝΙΑΙΟΣ ΠΡΟΫΠΟΛΟΓΙΣΜΟΣ"}]
[null,"ΕΣΟΔΑ"]
[null,"Προβλεπόμενα έσοδα","Προβλεπόμενα","Πραγματικά","Διαφορά"]
[null,"Εισόδημα 1",{"v":4000,"d":"4,000.00 €"},{"v":4000,"d":"4,000.00 €"},{"$f":"ΠίνακαςΕσόδων[[#This Row],[Προβλεπόμενα]]-ΠίνακαςΕσόδων[[#This Row],[Πραγματικά]]","v":{"v":0,"d":"0.00 €"}}]
[null,"Εισόδημα 2",{"v":1300,"d":"1,300.00 €"},{"v":1300,"d":"1,300.00 €"},{"$f":"ΠίνακαςΕσόδων[[#This Row],[Προβλεπόμενα]]-ΠίνακαςΕσόδων[[#This Row],[Πραγματικά]]","v":{"v":0,"d":"0.00 €"}}]
[null,"Επιπλέον εισόδημα",{"v":300,"d":"300.00 €"},{"v":300,"d":"300.00 €"},{"$f":"ΠίνακαςΕσόδων[[#This Row],[Προβλεπόμενα]]-ΠίνακαςΕσόδων[[#This Row],[Πραγματικά]]","v":{"v":0,"d":"0.00 €"}}]
[null,"Συνολικά μηνιαία έσοδα",{"$f":"SUBTOTAL(109,ΠίνακαςΕσόδων[Προβλεπόμενα])","v":{"v":5600,"d":"5,600.00 €"}},{"$f":"SUBTOTAL(109,ΠίνακαςΕσόδων[Πραγματικά])","v":{"v":5600,"d":"5,600.00 €"}},{"$f":"SUBTOTAL(109,ΠίνακαςΕσόδων[Διαφορά])","v":{"v":0,"d":"0.00 €"}}]

{"sheet":"Δαπάνες","index":3,"n_rows":80,"n_cols":6,"rows_kept":80,"merged":[[0,1,0,5],[1,1,1,5],[2,1,2,5]]}
[null,{"$f":"Workbook_Title","v":"ΟΙΚΟΓΕΝΕΙΑΚΟΣ ΜΗΝΙΑΙΟΣ ΠΡΟΫΠΟΛΟΓΙΣΜΟΣ"}]
[null,"ΔΑΠΑΝΕΣ"]
[null,"Ο αναλυτής για το φιλτράρισμα του πίνακα δαπανών κατά κατηγορία βρίσκεται σε αυτό το κελί."]
[null,"Κατηγορία","Υποκατηγορία","Προβλεπόμενα","Πραγματικά","Διαφορά"]
[null,"Στέγαση","Στεγαστικό ή ενοίκιο",{"v":1000,"d":"1,000.00 €"},{"v":1000,"d":"1,000.00 €"},{"$f":"ΠίνακαςΔαπανών[[#This Row],[Προβλεπόμενα]]-ΠίνακαςΔαπανών[[#This Row],[Πραγματικά]]","v":{"v":0,"d":"0.00 €"}}]
[null,"Στέγαση","Δεύτερο στεγαστικό ή ενοίκιο",{"v":0,"d":"0.00 €"},{"v":0,"d":"0.00 €"},{"$f":"ΠίνακαςΔαπανών[[#This Row],[Προβλεπόμενα]]-ΠίνακαςΔαπανών[[#This Row],[Πραγματικά]]","v":{"v":0,"d":"0.00 €"}}]
[null,"Στέγαση","Τηλέφωνο",{"v":54,"d":"54.00 €"},{"v":100,"d":"100.00 €"},{"$f":"ΠίνακαςΔαπανών[[#This Row],[Προβλεπόμενα]]-ΠίνακαςΔαπανών[[#This Row],[Πραγματικά]]","v":{"v":-46,"d":"-46.00 €"}}]
[null,"Στέγαση","Ηλεκτρικό",{"v":44,"d":"44.00 €"},{"v":56,"d":"56.00 €"},{"$f":"ΠίνακαςΔαπανών[[#This Row],[Προβλεπόμενα]]-ΠίνακαςΔαπανών[[#This Row],[Πραγματικά]]","v":{"v":-12,"d":"-12.00 €"}}]
[null,"Στέγαση","Αέριο",{"v":22,"d":"22.00 €"},{"v":28,"d":"28.00 €"},{"$f":"ΠίνακαςΔαπανών[[#This Row],[Προβλεπόμενα]]-ΠίνακαςΔαπανών[[#This Row],[Πραγματικά]]","v":{"v":-6,"d":"-6.00 €"}}]
[null,"Στέγαση","Ύδρευση και αποχέτευση",{"v":8,"d":"8.00 €"},{"v":8,"d":"8.00 €"},{"$f":"ΠίνακαςΔαπανών[[#This Row],[Προβλεπόμενα]]-ΠίνακαςΔαπανών[[#This Row],[Πραγματικά]]","v":{"v":0,"d":"0.00 €"}}]
[null,"Στέγαση","Συνδρομητική τηλεόραση",{"v":34,"d":"34.00 €"},{"v":34,"d":"34.00 €"},{"$f":"ΠίνακαςΔαπανών[[#This Row],[Προβλεπόμενα]]-ΠίνακαςΔαπανών[[#This Row],[Πραγματικά]]","v":{"v":0,"d":"0.00 €"}}]
[null,"Στέγαση","Αποκομιδή σκουπιδιών",{"v":10,"d":"10.00 €"},{"v":10,"d":"10.00 €"},{"$f":"ΠίνακαςΔαπανών[[#This Row],[Προβλεπόμενα]]-ΠίνακαςΔαπανών[[#This Row],[Πραγματικά]]","v":{"v":0,"d":"0.00 €"}}]
[null,"Στέγαση","Συντήρηση ή επισκευές",{"v":23,"d":"23.00 €"},{"v":0,"d":"0.00 €"},{"$f":"ΠίνακαςΔαπανών[[#This Row],[Προβλεπόμενα]]-ΠίνακαςΔαπανών[[#This Row],[Πραγματικά]]","v":{"v":23,"d":"23.00 €"}}]
[null,"Στέγαση","Προμήθειες",{"v":0,"d":"0.00 €"},{"v":0,"d":"0.00 €"},{"$f":"ΠίνακαςΔαπανών[[#This Row],[Προβλεπόμενα]]-ΠίνακαςΔαπανών[[#This Row],[Πραγματικά]]","v":{"v":0,"d":"0.00 €"}}]
[null,"Στέγαση","Άλλο",{"v":0,"d":"0.00 €"},{"v":0,"d":"0.00 €"},{"$f":"ΠίνακαςΔαπανών[[#This Row],[Προβλεπόμενα]]-ΠίνακαςΔαπανών[[#This Row],[Πραγματικά]]","v":{"v":0,"d":"0.00 €"}}]
[null,"Μετακινήσεις","Δόση οχήματος 1",{"v":16,"d":"16.00 €"},{"v":66,"d":"66.00 €"},{"$f":"ΠίνακαςΔαπανών[[#This Row],[Προβλεπόμενα]]-ΠίνακαςΔαπανών[[#This Row],[Πραγματικά]]","v":{"v":-50,"d":"-50.00 €"}}]
[null,"Μετακινήσεις","Δόση οχήματος 2",{"v":35,"d":"35.00 €"},{"v":42,"d":"42.00 €"},{"$f":"ΠίνακαςΔαπανών[[#This Row],[Προβλεπόμενα]]-ΠίνακαςΔαπανών[[#This Row],[Πραγματικά]]","v":{"v":-7,"d":"-7.00 €"}}]
[null,"Μετακινήσεις","Ναύλα λεωφορείου/ταξί",{"v":1,"d":"1.00 €"},{"v":62,"d":"62.00 €"},{"$f":"ΠίνακαςΔαπανών[[#This Row],[Προβλεπόμενα]]-ΠίνακαςΔαπανών[[#This Row],[Πραγματικά]]","v":{"v":-61,"d":"-61.00 €"}}]
[null,"Μετακινήσεις","Ασφάλεια",{"v":91,"d":"91.00 €"},{"v":27,"d":"27.00 €"},{"$f":"ΠίνακαςΔαπανών[[#This Row],[Προβλεπόμενα]]-ΠίνακαςΔαπανών[[#This Row],[Πραγματικά]]","v":{"v":64,"d":"64.00 €"}}]
[null,"Μετακινήσεις","Τέλη κυκλοφορίας",{"v":80,"d":"80.00 €"},{"v":89,"d":"89.00 €"},{"$f":"ΠίνακαςΔαπανών[[#This Row],[Προβλεπόμενα]]-ΠίνακαςΔαπανών[[#This Row],[Πραγματικά]]","v":{"v":-9,"d":"-9.00 €"}}]
[null,"Μετακινήσεις","Καύσιμα",{"v":18,"d":"18.00 €"},{"v":93,"d":"93.00 €"},{"$f":"ΠίνακαςΔαπανών[[#This Row],[Προβλεπόμενα]]-ΠίνακαςΔαπανών[[#This Row],[Πραγματικά]]","v":{"v":-75,"d":"-75.00 €"}}]
[null,"Μετακινήσεις","Συντήρηση",{"v":34,"d":"34.00 €"},{"v":37,"d":"37.00 €"},{"$f":"ΠίνακαςΔαπανών[[#This Row],[Προβλεπόμενα]]-ΠίνακαςΔαπανών[[#This Row],[Πραγματικά]]","v":{"v":-3,"d":"-3.00 €"}}]
[null,"Μετακινήσεις","Άλλο",{"v":83,"d":"83.00 €"},{"v":61,"d":"61.00 €"},{"$f":"ΠίνακαςΔαπανών[[#This Row],[Προβλεπόμενα]]-ΠίνακαςΔαπανών[[#This Row],[Πραγματικά]]","v":{"v":22,"d":"22.00 €"}}]
[null,"Ασφάλεια","Κατοικίας",{"v":48,"d":"48.00 €"},{"v":63,"d":"63.00 €"},{"$f":"ΠίνακαςΔαπανών[[#This Row],[Προβλεπόμενα]]-ΠίνακαςΔαπανών[[#This Row],[Πραγματικά]]","v":{"v":-15,"d":"-15.00 €"}}]
[null,"Ασφάλεια","Υγείας",{"v":21,"d":"21.00 €"},{"v":44,"d":"44.00 €"},{"$f":"ΠίνακαςΔαπανών[[#This Row],[Προβλεπόμενα]]-ΠίνακαςΔαπανών[[#This Row],[Πραγματικά]]","v":{"v":-23,"d":"-23.00 €"}}]
[null,"Ασφάλεια","Ζωής",{"v":35,"d":"35.00 €"},{"v":65,"d":"65.00 €"},{"$f":"ΠίνακαςΔαπανών[[#This Row],[Προβλεπόμενα]]-ΠίνακαςΔαπανών[[#This Row],[Πραγματικά]]","v":{"v":-30,"d":"-30.00 €"}}]
[null,"Ασφάλεια","Άλλο",{"v":14,"d":"14.00 €"},{"v":75,"d":"75.00 €"},{"$f":"ΠίνακαςΔαπανών[[#This Row],[Προβλεπόμενα]]-ΠίνακαςΔαπανών[[#This Row],[Πραγματικά]]","v":{"v":-61,"d":"-61.00 €"}}]
[null,"Τρόφιμα","Ψώνια",{"v":79,"d":"79.00 €"},{"v":0,"d":"0.00 €"},{"$f":"ΠίνακαςΔαπανών[[#This Row],[Προβλεπόμενα]]-ΠίνακαςΔαπανών[[#This Row],[Πραγματικά]]","v":{"v":79,"d":"79.00 €"}}]
[null,"Τρόφιμα","Εστιατόρια",{"v":56,"d":"56.00 €"},{"v":50,"d":"50.00 €"},{"$f":"ΠίνακαςΔαπανών[[#This Row],[Προβλεπόμενα]]-ΠίνακαςΔαπανών[[#This Row],[Πραγματικά]]","v":{"v":6,"d":"6.00 €"}}]
[null,"Τρόφιμα","Άλλο",{"v":96,"d":"96.00 €"},{"v":23,"d":"23.00 €"},{"$f":"ΠίνακαςΔαπανών[[#This Row],[Προβλεπόμενα]]-ΠίνακαςΔαπανών[[#This Row],[Πραγματικά]]","v":{"v":73,"d":"73.00 €"}}]
[null,"Παιδιά","Ιατρικά",{"v":90,"d":"90.00 €"},{"v":90,"d":"90.00 €"},{"$f":"ΠίνακαςΔαπανών[[#This Row],[Προβλεπόμενα]]-ΠίνακαςΔαπανών[[#This Row],[Πραγματικά]]","v":{"v":0,"d":"0.00 €"}}]
[null,"Παιδιά","Ρούχα",{"v":33,"d":"33.00 €"},{"v":30,"d":"30.00 €"},{"$f":"ΠίνακαςΔαπανών[[#This Row],[Προβλεπόμενα]]-ΠίνακαςΔαπανών[[#This Row],[Πραγματικά]]","v":{"v":3,"d":"3.00 €"}}]
[null,"Παιδιά","Δίδακτρα",{"v":86,"d":"86.00 €"},{"v":64,"d":"64.00 €"},{"$f":"ΠίνακαςΔαπανών[[#This Row],[Προβλεπόμενα]]-ΠίνακαςΔαπανών[[#This Row],[Πραγματικά]]","v":{"v":22,"d":"22.00 €"}}]
[null,"Παιδιά","Υλικά σχολείου",{"v":76,"d":"76.00 €"},{"v":2,"d":"2.00 €"},{"$f":"ΠίνακαςΔαπανών[[#This Row],[Προβλεπόμενα]]-ΠίνακαςΔαπανών[[#This Row],[Πραγματικά]]","v":{"v":74,"d":"74.00 €"}}]
[null,"Παιδιά","Συμμετοχή σε οργανώσεις",{"v":60,"d":"60.00 €"},{"v":90,"d":"90.00 €"},{"$f":"ΠίνακαςΔαπανών[[#This Row],[Προβλεπόμενα]]-ΠίνακαςΔαπανών[[#This Row],[Πραγματικά]]","v":{"v":-30,"d":"-30.00 €"}}]
[null,"Παιδιά","Χρήματα για κολατσιό",{"v":37,"d":"37.00 €"},{"v":60,"d":"60.00 €"},{"$f":"ΠίνακαςΔαπανών[[#This Row],[Προβλεπόμενα]]-ΠίνακαςΔαπανών[[#This Row],[Πραγματικά]]","v":{"v":-23,"d":"-23.00 €"}}]
[null,"Παιδιά","Μπέιμπι σίτερ",{"v":22,"d":"22.00 €"},{"v":70,"d":"70.00 €"},{"$f":"ΠίνακαςΔαπανών[[#This Row],[Προβλεπόμενα]]-ΠίνακαςΔαπανών[[#This Row],[Πραγματικά]]","v":{"v":-48,"d":"-48.00 €"}}]
[null,"Παιδιά","Παιχνίδια/δραστηριότητες",{"v":80,"d":"80.00 €"},{"v":21,"d":"21.00 €"},{"$f":"ΠίνακαςΔαπανών[[#This Row],[Προβλεπόμενα]]-ΠίνακαςΔαπανών[[#This Row],[Πραγματικά]]","v":{"v":59,"d":"59.00 €"}}]
[null,"Παιδιά","Άλλο",{"v":65,"d":"65.00 €"},{"v":20,"d":"20.00 €"},{"$f":"ΠίνακαςΔαπανών[[#This Row],[Προβλεπόμενα]]-ΠίνακαςΔαπανών[[#This Row],[Πραγματικά]]","v":{"v":45,"d":"45.00 €"}}]
[null,"Κατοικίδια","Τρόφιμα",{"v":37,"d":"37.00 €"},{"v":34,"d":"34.00 €"},{"$f":"ΠίνακαςΔαπανών[[#This Row],[Προβλεπόμενα]]-ΠίνακαςΔαπανών[[#This Row],[Πραγματικά]]","v":{"v":3,"d":"3.00 €"}}]
[null,"Κατοικίδια","Ιατρικά",{"v":74,"d":"74.00 €"},{"v":86,"d":"86.00 €"},{"$f":"ΠίνακαςΔαπανών[[#This Row],[Προβλεπόμενα]]-ΠίνακαςΔαπανών[[#This Row],[Πραγματικά]]","v":{"v":-12,"d":"-12.00 €"}}]
[null,"Κατοικίδια","Περιποίηση",{"v":80,"d":"80.00 €"},{"v":92,"d":"92.00 €"},{"$f":"ΠίνακαςΔαπανών[[#This Row],[Προβλεπόμενα]]-ΠίνακαςΔαπανών[[#This Row],[Πραγματικά]]","v":{"v":-12,"d":"-12.00 €"}}]
[null,"Κατοικίδια","Παιχνίδια",{"v":61,"d":"61.00 €"},{"v":22,"d":"22.00 €"},{"$f":"ΠίνακαςΔαπανών[[#This Row],[Προβλεπόμενα]]-ΠίνακαςΔαπανών[[#This Row],[Πραγματικά]]","v":{"v":39,"d":"39.00 €"}}]
[null,"Κατοικίδια","Άλλο",{"v":83,"d":"83.00 €"},{"v":51,"d":"51.00 €"},{"$f":"ΠίνακαςΔαπανών[[#This Row],[Προβλεπόμενα]]-ΠίνακαςΔαπανών[[#This Row],[Πραγματικά]]","v":{"v":32,"d":"32.00 €"}}]
[null,"Προσωπική φροντίδα","Ιατρικά",{"v":28,"d":"28.00 €"},{"v":10,"d":"10.00 €"},{"$f":"ΠίνακαςΔαπανών[[#This Row],[Προβλεπόμενα]]-ΠίνακαςΔαπανών[[#This Row],[Πραγματικά]]","v":{"v":18,"d":"18.00 €"}}]
[null,"Προσωπική φροντίδα","Κομμωτήριο",{"v":25,"d":"25.00 €"},{"v":81,"d":"81.00 €"},{"$f":"ΠίνακαςΔαπανών[[#This Row],[Προβλεπόμενα]]-ΠίνακαςΔαπανών[[#This Row],[Πραγματικά]]","v":{"v":-56,"d":"-56.00 €"}}]
[null,"Προσωπική φροντίδα","Ρούχα",{"v":59,"d":"59.00 €"},{"v":72,"d":"72.00 €"},{"$f":"ΠίνακαςΔαπανών[[#This Row],[Προβλεπόμενα]]-ΠίνακαςΔαπανών[[#This Row],[Πραγματικά]]","v":{"v":-13,"d":"-13.00 €"}}]
[null,"Προσωπική φροντίδα","Στεγνοκαθαριστήριο",{"v":89,"d":"89.00 €"},{"v":90,"d":"90.00 €"},{"$f":"ΠίνακαςΔαπανών[[#This Row],[Προβλεπόμενα]]-ΠίνακαςΔαπανών[[#This Row],[Πραγματικά]]","v":{"v":-1,"d":"-1.00 €"}}]
[null,"Προσωπική φροντίδα","Γυμναστήριο",{"v":78,"d":"78.00 €"},{"v":48,"d":"48.00 €"},{"$f":"ΠίνακαςΔαπανών[[#This Row],[Προβλεπόμενα]]-ΠίνακαςΔαπανών[[#This Row],[Πραγματικά]]","v":{"v":30,"d":"30.00 €"}}]
[null,"Προσωπική φροντίδα","Συμμετοχή σε οργανώσεις",{"v":6,"d":"6.00 €"},{"v":73,"d":"73.00 €"},{"$f":"ΠίνακαςΔαπανών[[#This Row],[Προβλεπόμενα]]-ΠίνακαςΔαπανών[[#This Row],[Πραγματικά]]","v":{"v":-67,"d":"-67.00 €"}}]
[null,"Προσωπική φροντίδα","Άλλο",{"v":80,"d":"80.00 €"},{"v":66,"d":"66.00 €"},{"$f":"ΠίνακαςΔαπανών[[#This Row],[Προβλεπόμενα]]-ΠίνακαςΔαπανών[[#This Row],[Πραγματικά]]","v":{"v":14,"d":"14.00 €"}}]
[null,"Ψυχαγωγία","Βίντεο/DVD",{"v":11,"d":"11.00 €"},{"v":29,"d":"29.00 €"},{"$f":"ΠίνακαςΔαπανών[[#This Row],[Προβλεπόμενα]]-ΠίνακαςΔαπανών[[#This Row],[Πραγματικά]]","v":{"v":-18,"d":"-18.00 €"}}]
[null,"Ψυχαγωγία","CD",{"v":77,"d":"77.00 €"},{"v":32,"d":"32.00 €"},{"$f":"ΠίνακαςΔαπανών[[#This Row],[Προβλεπόμενα]]-ΠίνακαςΔαπανών[[#This Row],[Πραγματικά]]","v":{"v":45,"d":"45.00 €"}}]
[null,"Ψυχαγωγία","Ταινίες",{"v":71,"d":"71.00 €"},{"v":43,"d":"43.00 €"},{"$f":"ΠίνακαςΔαπανών[[#This Row],[Προβλεπόμενα]]-ΠίνακαςΔαπανών[[#This Row],[Πραγματικά]]","v":{"v":28,"d":"28.00 €"}}]
[null,"Ψυχαγωγία","Συναυλίες",{"v":64,"d":"64.00 €"},{"v":21,"d":"21.00 €"},{"$f":"ΠίνακαςΔαπανών[[#This Row],[Προβλεπόμενα]]-ΠίνακαςΔαπανών[[#This Row],[Πραγματικά]]","v":{"v":43,"d":"43.00 €"}}]
[null,"Ψυχαγωγία","Αθλητικές εκδηλώσεις",{"v":47,"d":"47.00 €"},{"v":57,"d":"57.00 €"},{"$f":"ΠίνακαςΔαπανών[[#This Row],[Προβλεπόμενα]]-ΠίνακαςΔαπανών[[#This Row],[Πραγματικά]]","v":{"v":-10,"d":"-10.00 €"}}]
[null,"Ψυχαγωγία","Θέατρο",{"v":28,"d":"28.00 €"},{"v":1,"d":"1.00 €"},{"$f":"ΠίνακαςΔαπανών[[#This Row],[Προβλεπόμενα]]-ΠίνακαςΔαπανών[[#This Row],[Πραγματικά]]","v":{"v":27,"d":"27.00 €"}}]
[null,"Ψυχαγωγία","Άλλο",{"v":13,"d":"13.00 €"},{"v":42,"d":"42.00 €"},{"$f":"ΠίνακαςΔαπανών[[#This Row],[Προβλεπόμενα]]-ΠίνακαςΔαπανών[[#This Row],[Πραγματικά]]","v":{"v":-29,"d":"-29.00 €"}}]
[null,"Δάνεια","Προσωπικό",{"v":65,"d":"65.00 €"},{"v":6,"d":"6.00 €"},{"$f":"ΠίνακαςΔαπανών[[#This Row],[Προβλεπόμενα]]-ΠίνακαςΔαπανών[[#This Row],[Πραγματικά]]","v":{"v":59,"d":"59.00 €"}}]
[null,"Δάνεια","Φοιτητικό",{"v":100,"d":"100.00 €"},{"v":36,"d":"36.00 €"},{"$f":"ΠίνακαςΔαπανών[[#This Row],[Προβλεπόμενα]]-ΠίνακαςΔαπανών[[#This Row],[Πραγματικά]]","v":{"v":64,"d":"64.00 €"}}]
[null,"Δάνεια","Πιστωτική κάρτα",{"v":29,"d":"29.00 €"},{"v":69,"d":"69.00 €"},{"$f":"ΠίνακαςΔαπανών[[#This Row],[Προβλεπόμενα]]-ΠίνακαςΔαπανών[[#This Row],[Πραγματικά]]","v":{"v":-40,"d":"-40.00 €"}}]
[null,"Δάνεια","Πιστωτική κάρτα",{"v":64,"d":"64.00 €"},{"v":3,"d":"3.00 €"},{"$f":"ΠίνακαςΔαπανών[[#This Row],[Προβλεπόμενα]]-ΠίνακαςΔαπανών[[#This Row],[Πραγματικά]]","v":{"v":61,"d":"61.00 €"}}]
[null,"Δάνεια","Πιστωτική κάρτα",{"v":34,"d":"34.00 €"},{"v":35,"d":"35.00 €"},{"$f":"ΠίνακαςΔαπανών[[#This Row],[Προβλεπόμενα]]-ΠίνακαςΔαπανών[[#This Row],[Πραγματικά]]","v":{"v":-1,"d":"-1.00 €"}}]
[null,"Δάνεια","Άλλο",{"v":38,"d":"38.00 €"},{"v":52,"d":"52.00 €"},{"$f":"ΠίνακαςΔαπανών[[#This Row],[Προβλεπόμενα]]-ΠίνακαςΔαπανών[[#This Row],[Πραγματικά]]","v":{"v":-14,"d":"-14.00 €"}}]
[null,"Φόροι","Εθνικοί",{"v":84,"d":"84.00 €"},{"v":36,"d":"36.00 €"},{"$f":"ΠίνακαςΔαπανών[[#This Row],[Προβλεπόμενα]]-ΠίνακαςΔαπανών[[#This Row],[Πραγματικά]]","v":{"v":48,"d":"48.00 €"}}]
[null,"Φόροι","Περιφερειακοί",{"v":2,"d":"2.00 €"},{"v":83,"d":"83.00 €"},{"$f":"ΠίνακαςΔαπανών[[#This Row],[Προβλεπόμενα]]-ΠίνακαςΔαπανών[[#This Row],[Πραγματικά]]","v":{"v":-81,"d":"-81.00 €"}}]
[null,"Φόροι","Δημοτικοί",{"v":40,"d":"40.00 €"},{"v":20,"d":"20.00 €"},{"$f":"ΠίνακαςΔαπανών[[#This Row],[Προβλεπόμενα]]-ΠίνακαςΔαπανών[[#This Row],[Πραγματικά]]","v":{"v":20,"d":"20.00 €"}}]
[null,"Φόροι","Άλλο",{"v":35,"d":"35.00 €"},{"v":72,"d":"72.00 €"},{"$f":"ΠίνακαςΔαπανών[[#This Row],[Προβλεπόμενα]]-ΠίνακαςΔαπανών[[#This Row],[Πραγματικά]]","v":{"v":-37,"d":"-37.00 €"}}]
[null,"Αποταμιεύσεις ή επενδύσεις","Λογαριασμός συνταξιοδότησης",{"v":34,"d":"34.00 €"},{"v":20,"d":"20.00 €"},{"$f":"ΠίνακαςΔαπανών[[#This Row],[Προβλεπόμενα]]-ΠίνακαςΔαπανών[[#This Row],[Πραγματικά]]","v":{"v":14,"d":"14.00 €"}}]
[null,"Αποταμιεύσεις ή επενδύσεις","Επενδυτικός λογαριασμός",{"v":68,"d":"68.00 €"},{"v":98,"d":"98.00 €"},{"$f":"ΠίνακαςΔαπανών[[#This Row],[Προβλεπόμενα]]-ΠίνακαςΔαπανών[[#This Row],[Πραγματικά]]","v":{"v":-30,"d":"-30.00 €"}}]
[null,"Αποταμιεύσεις ή επενδύσεις","Πανεπιστήμιο",{"v":89,"d":"89.00 €"},{"v":68,"d":"68.00 €"},{"$f":"ΠίνακαςΔαπανών[[#This Row],[Προβλεπόμενα]]-ΠίνακαςΔαπανών[[#This Row],[Πραγματικά]]","v":{"v":21,"d":"21.00 €"}}]
[null,"Αποταμιεύσεις ή επενδύσεις","Άλλο",{"v":82,"d":"82.00 €"},{"v":26,"d":"26.00 €"},{"$f":"ΠίνακαςΔαπανών[[#This Row],[Προβλεπόμενα]]-ΠίνακαςΔαπανών[[#This Row],[Πραγματικά]]","v":{"v":56,"d":"56.00 €"}}]
[null,"Δώρα και δωρεές","Φιλανθρωπική οργάνωση 1",{"v":41,"d":"41.00 €"},{"v":85,"d":"85.00 €"},{"$f":"ΠίνακαςΔαπανών[[#This Row],[Προβλεπόμενα]]-ΠίνακαςΔαπανών[[#This Row],[Πραγματικά]]","v":{"v":-44,"d":"-44.00 €"}}]
[null,"Δώρα και δωρεές","Φιλανθρωπική οργάνωση 2",{"v":0,"d":"0.00 €"},{"v":69,"d":"69.00 €"},{"$f":"ΠίνακαςΔαπανών[[#This Row],[Προβλεπόμενα]]-ΠίνακαςΔαπανών[[#This Row],[Πραγματικά]]","v":{"v":-69,"d":"-69.00 €"}}]
[null,"Δώρα και δωρεές","Φιλανθρωπική οργάνωση 3",{"v":2,"d":"2.00 €"},{"v":57,"d":"57.00 €"},{"$f":"ΠίνακαςΔαπανών[[#This Row],[Προβλεπόμενα]]-ΠίνακαςΔαπανών[[#This Row],[Πραγματικά]]","v":{"v":-55,"d":"-55.00 €"}}]
[null,"Νομικά","Δικηγόρος",{"v":7,"d":"7.00 €"},{"v":98,"d":"98.00 €"},{"$f":"ΠίνακαςΔαπανών[[#This Row],[Προβλεπόμενα]]-ΠίνακαςΔαπανών[[#This Row],[Πραγματικά]]","v":{"v":-91,"d":"-91.00 €"}}]
[null,"Νομικά","Διατροφή",{"v":39,"d":"39.00 €"},{"v":85,"d":"85.00 €"},{"$f":"ΠίνακαςΔαπανών[[#This Row],[Προβλεπόμενα]]-ΠίνακαςΔαπανών[[#This Row],[Πραγματικά]]","v":{"v":-46,"d":"-46.00 €"}}]
[null,"Νομικά","Πληρωμές με επίσχεση ή δικαστική απόφαση",{"v":78,"d":"78.00 €"},{"v":84,"d":"84.00 €"},{"$f":"ΠίνακαςΔαπανών[[#This Row],[Προβλεπόμενα]]-ΠίνακαςΔαπανών[[#This Row],[Πραγματικά]]","v":{"v":-6,"d":"-6.00 €"}}]
[null,"Νομικά","Άλλο",{"v":93,"d":"93.00 €"},{"v":71,"d":"71.00 €"},{"$f":"ΠίνακαςΔαπανών[[#This Row],[Προβλεπόμενα]]-ΠίνακαςΔαπανών[[#This Row],[Πραγματικά]]","v":{"v":22,"d":"22.00 €"}}]
[null,"Άθροισμα",{"$nulls":3},{"$f":"SUBTOTAL(109,ΠίνακαςΔαπανών[Διαφορά])","v":{"v":-117,"d":"-117.00 €"}}]